[Event "VI Sunway Sitges Open 2019"]
[Site "Sitges"]
[Date "2019.12.14"]
[Round "2.38"]
[White "Alexiadis, Hristos"]
[Black "Harsha Bharathakoti"]
[Result "1/2-1/2"]
[ECO "B31"]
[WhiteElo "2346"]
[BlackElo "2523"]
[Annotator "ChessBase"]
[PlyCount "86"]
[EventDate "2019.12.13"]
[EventType "swiss"]
[EventCountry "ESP"]
[SourceTitle "playchess.com"]
[Source "ChessBase"]
[SourceQuality "1"]
[TimeControl "40/5400+30:1800+30"]

1. e4 {[%emt 0:00:00]} c5 {[%emt 0:05:57]} 2. Nf3 {[%emt 0:00:09]} Nc6 {[%emt 0:00:04]} 3. Bb5 {[%emt 0:01:09]} g6 {[%emt 0:01:02]} 4. O-O {[%emt 0:00:37]} Bg7 {[%emt 0:00:30]} 5. Re1 {[%emt 0:01:45]} e5 {[%emt 0:06:35]} 6. Nc3 {[%emt 0:02:14]} Nge7 {[%emt 0:00:59]} 7. d3 {[%emt 0:00:24]} O-O {[%emt 0:02:34]} 8. Bc4 {[%emt 0:00:49]} h6 {[%emt 0:07:31]} 9. a4 {[%emt 0:01:12]} d6 {[%emt 0:00:12]} 10. h3 {[%emt 0:00:22]} Kh7 {[%emt 0:14:10]} 11. Nd5 {[%emt 0:04:53]} f5 {[%emt 0:04:37]} 12. exf5 {[%emt 0:00:14]} Bxf5 {[%emt 0:03:48]} 13. c3 {[%emt 0:05:45]} Qd7 {[%emt 0:05:21]} 14. Nxe7 {[%emt 0:19:01]} Nxe7 {[%emt 0:04:08]} 15. Bb5 {[%emt 0:11:17]} Qc7 {[%emt 0:04:38]} 16. d4 {[%emt 0:08:11]} cxd4 {[%emt 0:02:40]} 17. cxd4 {[%emt 0:03:09]} e4 {[%emt 0:01:44]} 18. Nh2 {[%emt 0:00:14]} a6 {[%emt 0:03:51]} 19. Be2 {[%emt 0:01:36]} Qb6 {[%emt 0:10:00]} 20. Be3 {[%emt 0:04:06]} Nd5 {[%emt 0:00:03]} 21. Qd2 {[%emt 0:00:26]} Rac8 {[%emt 0:01:11]} 22. Nf1 {[%emt 0:05:01]} Qb4 {[%emt 0:06:28]} 23. Rec1 {[%emt 0:10:32]} Rxc1 {[%emt 0:04:11]} 24. Rxc1 {[%emt 0:00:04]} Qxa4 {[%emt 0:00:04]} 25. Bc4 {[%emt 0:00:07]} Ne7 {[%emt 0:03:33]} 26. g4 {[%emt 0:00:51]} Bc8 {[%emt 0:02:10]} 27. Ng3 {[%emt 0:01:54]} d5 {[%emt 0:00:20]} 28. Be2 {[%emt 0:00:05]} Qd7 {[%emt 0:02:17]} 29. b4 {[%emt 0:00:55]} Qd6 {[%emt 0:00:18]} 30. b5 {[%emt 0:00:52]} axb5 {[%emt 0:00:14]} 31. Bxb5 {[%emt 0:00:11]} Bd7 {[%emt 0:00:55]} 32. Bxd7 {[%emt 0:01:46]} Qxd7 {[%emt 0:00:02]} 33. Qb4 {[%emt 0:07:07]} Nc6 {[%emt 0:00:28]} 34. Qb6 {[%emt 0:00:06]} Ra8 {[%emt 0:03:12]} 35. Rb1 {[%emt 0:00:14]} Nd8 {[%emt 0:00:37]} 36. Rc1 {[%emt 0:00:48]} Nc6 {[%emt 0:00:39]} 37. Rb1 {[%emt 0:00:10]} Nd8 {[%emt 0:00:03]} 38. Rc1 {[%emt 0:00:08]} Ne6 {[%emt 0:00:56]} 39. Rb1 {[%emt 0:00:36]} Kg8 {[%emt 0:00:56]} 40. Ne2 {[%emt 0:00:00]} Rb8 {[%emt 0:00:00]} 41. Nf4 {[%emt 0:07:25]} Nxf4 {[%emt 0:03:10]} 42. Bxf4 {[%emt 0:00:05]} Rf8 {[%emt 0:00:01]} 43. Be3 {[%emt 0:00:09]} g5 {[%emt 0:04:55]} 1/2-1/2

[Event "VI Sunway Sitges Open 2019"]
[Site "Sitges"]
[Date "2019.12.14"]
[Round "2.39"]
[White "Narciso Dublan, Marc"]
[Black "Ortega Serra, Marc"]
[Result "1/2-1/2"]
[ECO "C00"]
[WhiteElo "2516"]
[BlackElo "2345"]
[Annotator "ChessBase"]
[PlyCount "67"]
[EventDate "2019.12.13"]
[EventType "swiss"]
[EventCountry "ESP"]
[SourceTitle "playchess.com"]
[Source "ChessBase"]
[SourceQuality "1"]
[TimeControl "40/5400+30:1800+30"]

1. e4 {[%emt 0:00:00]} e6 {[%emt 0:00:00]} 2. f4 {[%emt 0:00:21]} d5 {[%emt 0:00:07]} 3. e5 {[%emt 0:00:08]} c5 {[%emt 0:00:59]} 4. Nf3 {[%emt 0:00:10]} Nc6 {[%emt 0:02:02]} 5. c3 {[%emt 0:00:10]} Nh6 {[%emt 0:01:41]} 6. Na3 {[%emt 0:00:11]} Nf5 {[%emt 0:05:40]} 7. Nc2 {[%emt 0:00:46]} h5 {[%emt 0:03:31]} 8. Bd3 {[%emt 0:01:04]} g6 {[%emt 0:05:04]} 9. Bxf5 {[%emt 0:02:42]} gxf5 {[%emt 0:00:00]} 10. d4 {[%emt 0:00:04]} b6 {[%emt 0:07:52]} 11. O-O {[%emt 0:05:29]} Ba6 {[%emt 0:03:47]} 12. Re1 {[%emt 0:04:18]} Be7 {[%emt 0:00:00]} 13. Be3 {[%emt 0:00:46]} Qd7 {[%emt 0:00:00]} 14. Qd2 {[%emt 0:03:36]} Rc8 {[%emt 0:00:00]} 15. Bf2 {[%emt 0:00:47]} h4 {[%emt 0:09:11]} 16. h3 {[%emt 0:08:26]} Nb8 {[%emt 0:30:29]} 17. Red1 {[%emt 0:18:53]} Qb5 {[%emt 0:00:00]} 18. a4 {[%emt 0:07:35]} Qe2 {[%emt 0:00:00]} 19. a5 {[%emt 0:01:20]} Rg8 {[%emt 0:00:00]} 20. Kh1 {[%emt 0:02:03]} Qxd2 {[%emt 0:05:43]} 21. Rxd2 {[%emt 0:00:12]} Rh8 {[%emt 0:00:06]} 22. axb6 {[%emt 0:00:58]} axb6 {[%emt 0:00:06]} 23. dxc5 {[%emt 0:04:38]} bxc5 {[%emt 0:00:02]} 24. b4 {[%emt 0:00:13]} d4 {[%emt 0:00:48]} 25. cxd4 {[%emt 0:13:35]} cxb4 {[%emt 0:00:08]} 26. d5 {[%emt 0:00:53]} b3 {[%emt 0:02:54]} 27. Ncd4 {[%emt 0:00:25]} Bb4 {[%emt 0:01:17]} 28. Rdd1 {[%emt 0:01:09]} b2 {[%emt 0:03:08]} 29. Rab1 {[%emt 0:00:27]} Ba3 {[%emt 0:00:03]} 30. Ne1 {[%emt 0:15:19]} Rc1 {[%emt 0:06:39]} 31. Ndc2 {[%emt 0:01:41]} Be2 {[%emt 0:00:50]} 32. Nxa3 {[%emt 0:01:27]} Bxd1 {[%emt 0:00:23]} 33. Rxb2 {[%emt 0:00:05]} Nd7 {[%emt 0:04:46]} 34. Nb5 {[%emt 0:06:32] O-O dxe6 fxe6 Kh2 Rb8} 1/2-1/2

[Event "VI Sunway Sitges Open 2019"]
[Site "Sitges"]
[Date "2019.12.14"]
[Round "2.40"]
[White "Kucuksari, Kaan"]
[Black "Aroshidze, Levan"]
[Result "0-1"]
[ECO "A62"]
[WhiteElo "2337"]
[BlackElo "2514"]
[Annotator "ChessBase"]
[PlyCount "90"]
[EventDate "2019.12.13"]
[EventType "swiss"]
[EventCountry "ESP"]
[SourceTitle "playchess.com"]
[Source "ChessBase"]
[SourceQuality "1"]
[TimeControl "40/5400+30:1800+30"]

1. d4 {[%emt 0:00:00]} Nf6 {[%emt 0:00:57]} 2. c4 {[%emt 0:00:00]} e6 {[%emt 0:00:30]} 3. Nf3 {[%emt 0:00:00]} c5 {[%emt 0:00:37]} 4. d5 {[%emt 0:00:00]} exd5 {[%emt 0:00:05]} 5. cxd5 {[%emt 0:00:00]} d6 {[%emt 0:00:10]} 6. Nc3 {[%emt 0:00:00]} g6 {[%emt 0:00:21]} 7. g3 {[%emt 0:00:05]} Bg7 {[%emt 0:00:51]} 8. Bg2 {[%emt 0:00:05]} O-O {[%emt 0:00:08]} 9. O-O {[%emt 0:00:02]} Re8 {[%emt 0:00:20]} 10. Bf4 {[%emt 0:00:05]} Na6 {[%emt 0:01:14]} 11. Re1 {[%emt 0:04:57]} Bg4 {[%emt 0:01:21]} 12. e4 {[%emt 0:03:38]} Nd7 {[%emt 0:07:44]} 13. Qb3 {[%emt 0:02:27]} Bxf3 {[%emt 0:05:02]} 14. Bxf3 {[%emt 0:00:03]} Ne5 {[%emt 0:00:41]} 15. Be2 {[%emt 0:07:24]} c4 {[%emt 0:06:21]} 16. Qb5 {[%emt 0:01:43]} Nc5 {[%emt 0:06:10]} 17. Bxe5 {[%emt 0:04:33]} Bxe5 {[%emt 0:05:32]} 18. Bxc4 {[%emt 0:03:37]} Qf6 {[%emt 0:15:15]} 19. Bf1 {[%emt 0:10:12]} Bd4 {[%emt 0:05:40]} 20. Qe2 {[%emt 0:03:51]} Bxc3 {[%emt 0:12:14]} 21. bxc3 {[%emt 0:00:05]} Rxe4 {[%emt 0:00:47]} 22. Qd2 {[%emt 0:00:22]} Rae8 {[%emt 0:01:15]} 23. Bg2 {[%emt 0:00:27]} R4e5 {[%emt 0:09:24]} 24. h4 {[%emt 0:04:03]} Kg7 {[%emt 0:02:33]} 25. Rxe5 {[%emt 0:05:21]} Qxe5 {[%emt 0:00:14]} 26. Bf3 {[%emt 0:01:04]} Na4 {[%emt 0:01:43]} 27. Rb1 {[%emt 0:01:46]} b6 {[%emt 0:01:03]} 28. Rb4 {[%emt 0:04:08]} Qe1+ {[%emt 0:01:02]} 29. Qxe1 {[%emt 0:00:03]} Rxe1+ {[%emt 0:00:02]} 30. Kg2 {[%emt 0:02:32]} Nc5 {[%emt 0:00:02]} 31. g4 {[%emt 0:02:57]} Rc1 {[%emt 0:03:33]} 32. g5 {[%emt 0:00:36]} Rxc3 {[%emt 0:01:10]} 33. Rf4 {[%emt 0:02:53]} Nd3 {[%emt 0:04:36]} 34. Re4 {[%emt 0:00:02]} Rc2 {[%emt 0:00:11]} 35. Re7 {[%emt 0:04:05]} Rxf2+ {[%emt 0:00:20]} 36. Kg3 {[%emt 0:00:05]} Rxa2 {[%emt 0:00:07]} 37. Be2 {[%emt 0:06:06]} Kf8 {[%emt 0:01:19]} 38. Re3 {[%emt 0:00:27]} Ne5 {[%emt 0:00:19]} 39. h5 {[%emt 0:00:18]} Rd2 {[%emt 0:00:49]} 40. h6 {[%emt 0:00:00]} Rxd5 {[%emt 0:00:00]} 41. Ra3 {[%emt 0:00:39]} Ra5 {[%emt 0:04:06]} 42. Rc3 {[%emt 0:00:42]} Rc5 {[%emt 0:00:04]} 43. Ra3 {[%emt 0:00:03]} Nc6 {[%emt 0:00:20]} 44. Bf3 {[%emt 0:00:15]} Rxg5+ {[%emt 0:00:35]} 45. Kh4 {[%emt 0:00:09]} Rc5 {[%emt 0:00:17]} 0-1

[Event "VI Sunway Sitges Open 2019"]
[Site "Sitges"]
[Date "2019.12.14"]
[Round "2.41"]
[White "Kelires, Andreas"]
[Black "Sidhant, Mohapatra"]
[Result "1-0"]
[ECO "D10"]
[WhiteElo "2510"]
[BlackElo "2338"]
[Annotator "ChessBase"]
[PlyCount "79"]
[EventDate "2019.12.13"]
[EventType "swiss"]
[EventCountry "ESP"]
[SourceTitle "playchess.com"]
[Source "ChessBase"]
[SourceQuality "1"]
[TimeControl "40/5400+30:1800+30"]

1. d4 {[%emt 0:00:00]} d5 {[%emt 0:07:04]} 2. c4 {[%emt 0:00:00]} c6 {[%emt 0:00:43]} 3. cxd5 {[%emt 0:00:00]} cxd5 {[%emt 0:00:08]} 4. Bf4 {[%emt 0:00:00]} Nc6 {[%emt 0:01:13]} 5. e3 {[%emt 0:00:00]} Nf6 {[%emt 0:01:05]} 6. Nc3 {[%emt 0:00:01]} Bf5 {[%emt 0:02:44]} 7. Qb3 {[%emt 0:00:21]} Na5 {[%emt 0:00:29]} 8. Qa4+ {[%emt 0:00:06]} Bd7 {[%emt 0:00:11]} 9. Qc2 {[%emt 0:00:05]} Rc8 {[%emt 0:01:48]} 10. Bd3 {[%emt 0:05:34]} e6 {[%emt 0:01:51]} 11. Nf3 {[%emt 0:03:01]} Nc6 {[%emt 0:02:30]} 12. a3 {[%emt 0:02:58]} Be7 {[%emt 0:00:37]} 13. h3 {[%emt 0:01:57]} h6 {[%emt 0:02:06]} 14. O-O {[%emt 0:00:31]} O-O {[%emt 0:00:09]} 15. Qe2 {[%emt 0:07:31]} Be8 {[%emt 0:11:35]} 16. Rfe1 {[%emt 0:12:52]} Nh5 {[%emt 0:03:47]} 17. Bh2 {[%emt 0:05:03]} f5 {[%emt 0:00:43]} 18. Na4 {[%emt 0:32:14]} Qa5 {[%emt 0:21:39]} 19. Qd1 {[%emt 0:09:33]} Nd8 {[%emt 0:03:53]} 20. Nc3 {[%emt 0:01:12]} Qb6 {[%emt 0:00:10]} 21. Rc1 {[%emt 0:01:07]} Bd6 {[%emt 0:02:59]} 22. Bxd6 {[%emt 0:01:45]} Qxd6 {[%emt 0:00:07]} 23. Ne5 {[%emt 0:01:46]} Nc6 {[%emt 0:02:05]} 24. Bb5 {[%emt 0:03:03]} Nf6 {[%emt 0:00:44]} 25. Bxc6 {[%emt 0:01:16]} Bxc6 {[%emt 0:00:07]} 26. Ne2 {[%emt 0:01:20]} Nd7 {[%emt 0:03:16]} 27. Nxd7 {[%emt 0:02:32]} Qxd7 {[%emt 0:00:02]} 28. Nf4 {[%emt 0:00:22]} Bb5 {[%emt 0:00:12]} 29. Ng6 {[%emt 0:00:28]} Rfd8 {[%emt 0:01:21]} 30. Qd2 {[%emt 0:00:14]} Qd6 {[%emt 0:02:35]} 31. Ne5 {[%emt 0:00:08]} Ba6 {[%emt 0:04:41]} 32. Rc3 {[%emt 0:01:48]} Rf8 {[%emt 0:03:30]} 33. Rec1 {[%emt 0:00:39]} Rxc3 {[%emt 0:00:06]} 34. Rxc3 {[%emt 0:01:37]} f4 {[%emt 0:02:20]} 35. exf4 {[%emt 0:00:19]} Qd8 {[%emt 0:00:15]} 36. Qc1 {[%emt 0:03:19]} Bb5 {[%emt 0:01:28]} 37. Ng6 {[%emt 0:01:08]} Re8 {[%emt 0:00:11]} 38. Ne5 {[%emt 0:00:41]} Rf8 {[%emt 0:00:15]} 39. Rg3 {[%emt 0:00:54]} Qf6 {[%emt 0:00:18]} 40. Qc7 {[%emt 0:00:00]} 1-0

[Event "VI Sunway Sitges Open 2019"]
[Site "Sitges"]
[Date "2019.12.14"]
[Round "2.43"]
[White "Girish, A. Koushik"]
[Black "Rafiee, Makan"]
[Result "0-1"]
[ECO "D36"]
[WhiteElo "2506"]
[BlackElo "2335"]
[Annotator "ChessBase"]
[PlyCount "145"]
[EventDate "2019.12.13"]
[EventType "swiss"]
[EventCountry "ESP"]
[SourceTitle "playchess.com"]
[Source "ChessBase"]
[SourceQuality "1"]
[TimeControl "40/5400+30:1800+30"]

1. d4 {[%emt 0:00:00]} d5 {[%emt 0:00:00]} 2. c4 {[%emt 0:00:00]} e6 {[%emt 0:00:01]} 3. Nc3 {[%emt 0:00:09]} Nf6 {[%emt 0:00:07]} 4. cxd5 {[%emt 0:01:02]} exd5 {[%emt 0:00:07]} 5. Bg5 {[%emt 0:00:06]} c6 {[%emt 0:00:14]} 6. e3 {[%emt 0:00:07]} Be7 {[%emt 0:00:35]} 7. Bd3 {[%emt 0:00:06]} Nbd7 {[%emt 0:00:39]} 8. Qc2 {[%emt 0:01:50]} h6 {[%emt 0:00:22]} 9. Bh4 {[%emt 0:01:20]} Nh5 {[%emt 0:00:17]} 10. Bxe7 {[%emt 0:01:14]} Qxe7 {[%emt 0:00:05]} 11. O-O-O {[%emt 0:01:24]} Nb6 {[%emt 0:00:54]} 12. h3 {[%emt 0:00:41]} Bd7 {[%emt 0:03:08]} 13. Nf3 {[%emt 0:00:20]} O-O-O {[%emt 0:03:23]} 14. Ne5 {[%emt 0:04:14]} Nf6 {[%emt 0:02:20]} 15. Kb1 {[%emt 0:00:42]} Kb8 {[%emt 0:00:50]} 16. Rc1 {[%emt 0:00:15]} Ne8 {[%emt 0:04:10]} 17. Na4 {[%emt 0:01:07]} Nxa4 {[%emt 0:00:24]} 18. Qxa4 {[%emt 0:00:04]} Nd6 {[%emt 0:00:21]} 19. Rc3 {[%emt 0:01:13]} Be8 {[%emt 0:06:06]} 20. Ra3 {[%emt 0:03:29]} Nc8 {[%emt 0:00:14]} 21. Qa5 {[%emt 0:04:45]} f6 {[%emt 0:02:35]} 22. Nf3 {[%emt 0:02:51]} Qc7 {[%emt 0:05:31]} 23. Qb4 {[%emt 0:00:49]} Qe7 {[%emt 0:01:26]} 24. Qd2 {[%emt 0:00:31]} Nd6 {[%emt 0:02:07]} 25. Rc1 {[%emt 0:01:50]} Ne4 {[%emt 0:21:48]} 26. Qa5 {[%emt 0:01:22]} b6 {[%emt 0:00:27]} 27. Qe1 {[%emt 0:00:09]} Rc8 {[%emt 0:01:42]} 28. Ng1 {[%emt 0:00:59]} Bd7 {[%emt 0:01:40]} 29. Ne2 {[%emt 0:02:12]} Bf5 {[%emt 0:02:27]} 30. Ka1 {[%emt 0:00:50]} Nd6 {[%emt 0:00:43]} 31. Ba6 {[%emt 0:03:38]} Rc7 {[%emt 0:00:08]} 32. Rac3 {[%emt 0:00:14]} Bc8 {[%emt 0:01:53]} 33. Bd3 {[%emt 0:03:00]} Bb7 {[%emt 0:00:44]} 34. Nf4 {[%emt 0:00:29]} Rhc8 {[%emt 0:00:21]} 35. g4 {[%emt 0:00:29]} c5 {[%emt 0:04:14]} 36. dxc5 {[%emt 0:02:53]} bxc5 {[%emt 0:00:06]} 37. Qd1 {[%emt 0:06:41]} g5 {[%emt 0:13:04]} 38. Ne2 {[%emt 0:00:17]} Ne4 {[%emt 0:00:51]} 39. Bxe4 {[%emt 0:01:13]} Qxe4 {[%emt 0:00:06]} 40. Ng3 {[%emt 0:00:00]} Qg2 {[%emt 0:00:00]} 41. Nf5 {[%emt 0:00:48]} Qh2 {[%emt 0:12:24]} 42. a3 {[%emt 0:15:28]} a6 {[%emt 0:03:52]} 43. R1c2 {[%emt 0:07:12]} Qe5 {[%emt 0:07:08]} 44. Nxh6 {[%emt 0:00:37]} Rh7 {[%emt 0:01:56]} 45. Nf5 {[%emt 0:00:18]} c4 {[%emt 0:01:27]} 46. e4 {[%emt 0:06:00]} dxe4 {[%emt 0:02:27]} 47. Qd6+ {[%emt 0:01:46]} Qxd6 {[%emt 0:00:50]} 48. Nxd6 {[%emt 0:00:01]} Rd8 {[%emt 0:00:16]} 49. Nxb7 {[%emt 0:00:22]} Kxb7 {[%emt 0:00:23]} 50. Rxc4 {[%emt 0:00:16]} Re7 {[%emt 0:04:13]} 51. Rb4+ {[%emt 0:00:47]} Ka7 {[%emt 0:00:12]} 52. Rc6 {[%emt 0:00:29]} Rb7 {[%emt 0:01:32]} 53. Ra4 {[%emt 0:10:49]} Rd1+ {[%emt 0:00:19]} 54. Ka2 {[%emt 0:00:05]} Rd2 {[%emt 0:00:16]} 55. Raxa6+ {[%emt 0:00:11]} Kb8 {[%emt 0:00:04]} 56. Rab6 {[%emt 0:00:38]} Rxf2 {[%emt 0:00:28]} 57. Rxf6 {[%emt 0:00:46]} Rxb6 {[%emt 0:02:03]} 58. Rxb6+ {[%emt 0:04:18]} Kc7 {[%emt 0:00:05]} 59. Re6 {[%emt 0:00:04]} Rf4 {[%emt 0:00:28]} 60. a4 {[%emt 0:00:31]} Kd7 {[%emt 0:00:07]} 61. Re5 {[%emt 0:00:06]} Kd6 {[%emt 0:00:09]} 62. Re8 {[%emt 0:00:37]} Kd7 {[%emt 0:00:05]} 63. Rb8 {[%emt 0:02:31]} e3 {[%emt 0:00:16]} 64. Rb3 {[%emt 0:00:16]} Rxa4+ {[%emt 0:03:40]} 65. Kb1 {[%emt 0:00:05]} Re4 {[%emt 0:00:03]} 66. Rd3+ {[%emt 0:00:22]} Ke6 {[%emt 0:00:13]} 67. Rd1 {[%emt 0:00:30]} e2 {[%emt 0:00:16]} 68. Re1 {[%emt 0:00:11]} Ke5 {[%emt 0:00:10]} 69. Kc2 {[%emt 0:00:20]} Kf4 {[%emt 0:00:05]} 70. Kd3 {[%emt 0:02:12]} Kf3 {[%emt 0:00:28]} 71. b4 {[%emt 0:00:30]} Re8 {[%emt 0:00:55]} 72. b5 {[%emt 0:00:43]} Kf2 {[%emt 0:00:17]} 73. Kd4 {[%emt 0:02:32]} 0-1

[Event "VI Sunway Sitges Open 2019"]
[Site "Sitges"]
[Date "2019.12.14"]
[Round "2.44"]
[White "Davtyan, David Arm."]
[Black "Krzyzanowski, Marcin"]
[Result "0-1"]
[ECO "B15"]
[WhiteElo "2327"]
[BlackElo "2506"]
[Annotator "ChessBase"]
[PlyCount "58"]
[EventDate "2019.12.13"]
[EventType "swiss"]
[EventCountry "ESP"]
[SourceTitle "playchess.com"]
[Source "ChessBase"]
[SourceQuality "1"]
[TimeControl "40/5400+30:1800+30"]

1. e4 {[%emt 0:00:00]} g6 {[%emt 0:00:00]} 2. Nc3 {[%emt 0:00:54]} Bg7 {[%emt 0:00:17]} 3. f4 {[%emt 0:00:13]} c6 {[%emt 0:02:32]} 4. d4 {[%emt 0:03:10]} d5 {[%emt 0:00:53]} 5. e5 {[%emt 0:01:13]} Nh6 {[%emt 0:00:45]} 6. Nf3 {[%emt 0:01:38]} Bg4 {[%emt 0:00:45]} 7. h3 {[%emt 0:05:09]} Bxf3 {[%emt 0:01:50]} 8. Qxf3 {[%emt 0:00:06]} Nf5 {[%emt 0:00:18]} 9. Ne2 {[%emt 0:03:16]} c5 {[%emt 0:09:33]} 10. c3 {[%emt 0:03:06]} cxd4 {[%emt 0:01:26]} 11. g4 {[%emt 0:05:52]} Ne3 {[%emt 0:15:58]} 12. Bxe3 {[%emt 0:02:36]} dxe3 {[%emt 0:00:05]} 13. Bg2 {[%emt 0:09:25]} e6 {[%emt 0:01:50]} 14. f5 {[%emt 0:05:50]} Qh4+ {[%emt 0:05:44]} 15. Kd1 {[%emt 0:00:11]} Nc6 {[%emt 0:00:56]} 16. fxe6 {[%emt 0:04:11]} fxe6 {[%emt 0:00:48]} 17. Rf1 {[%emt 0:01:05]} Rf8 {[%emt 0:01:47]} 18. Qxe3 {[%emt 0:00:07]} Rxf1+ {[%emt 0:00:40]} 19. Bxf1 {[%emt 0:00:02]} Bh6 {[%emt 0:01:20]} 20. Qd3 {[%emt 0:02:34]} Qf2 {[%emt 0:06:21]} 21. Kc2 {[%emt 0:02:13]} O-O-O {[%emt 0:01:26]} 22. Rd1 {[%emt 0:05:44]} Nxe5 {[%emt 0:04:19]} 23. Qd4 {[%emt 0:02:26]} Qh2 {[%emt 0:03:59]} 24. Qxa7 {[%emt 0:06:33]} Nc4 {[%emt 0:01:16]} 25. Kb3 {[%emt 0:01:31]} Be3 {[%emt 0:06:34]} 26. Qa4 {[%emt 0:01:49]} Qf2 {[%emt 0:11:47]} 27. Qb5 {[%emt 0:02:56]} Kc7 {[%emt 0:03:05]} 28. Rd3 {[%emt 0:01:23]} Rd6 {[%emt 0:02:05]} 29. Rxe3 {[%emt 0:04:09]} Qxe3 {[%emt 0:00:51]} 0-1

[Event "VI Sunway Sitges Open 2019"]
[Site "Sitges"]
[Date "2019.12.14"]
[Round "2.45"]
[White "Saduakassova, Dinara"]
[Black "Solozhenkina, Elizaveta"]
[Result "1-0"]
[ECO "C03"]
[WhiteElo "2505"]
[BlackElo "2329"]
[Annotator "ChessBase"]
[PlyCount "139"]
[EventDate "2019.12.13"]
[EventType "swiss"]
[EventCountry "ESP"]
[SourceTitle "playchess.com"]
[Source "ChessBase"]
[SourceQuality "1"]
[TimeControl "40/5400+30:1800+30"]

1. e4 {[%emt 0:00:00]} e6 {[%emt 0:00:00]} 2. d4 {[%emt 0:00:02]} d5 {[%emt 0:00:00]} 3. Nd2 {[%emt 0:00:20]} Be7 {[%emt 0:00:00]} 4. Ngf3 {[%emt 0:07:05]} Nf6 {[%emt 0:00:22]} 5. Bd3 {[%emt 0:00:44]} c5 {[%emt 0:00:53]} 6. dxc5 {[%emt 0:01:28]} dxe4 {[%emt 0:13:06]} 7. Nxe4 {[%emt 0:00:18]} Nxe4 {[%emt 0:00:08]} 8. Bxe4 {[%emt 0:00:04]} Qxd1+ {[%emt 0:00:07]} 9. Kxd1 {[%emt 0:00:03]} Bxc5 {[%emt 0:00:10]} 10. Ke2 {[%emt 0:00:07]} Nd7 {[%emt 0:01:12]} 11. Bd3 {[%emt 0:04:09]} Ke7 {[%emt 0:04:13]} 12. Rd1 {[%emt 0:06:20]} Bd6 {[%emt 0:19:36]} 13. Be3 {[%emt 0:06:44]} Nc5 {[%emt 0:04:29]} 14. Bc4 {[%emt 0:07:29]} b6 {[%emt 0:00:15]} 15. Ng5 {[%emt 0:01:06]} Be5 {[%emt 0:05:28]} 16. c3 {[%emt 0:02:01]} h6 {[%emt 0:08:36]} 17. Bxc5+ {[%emt 0:04:09]} bxc5 {[%emt 0:00:06]} 18. Ne4 {[%emt 0:00:07]} Bb7 {[%emt 0:03:22]} 19. Nxc5 {[%emt 0:00:23]} Bxg2 {[%emt 0:00:59]} 20. Rd7+ {[%emt 0:00:15]} Kf6 {[%emt 0:01:13]} 21. f3 {[%emt 0:02:22]} g5 {[%emt 0:03:28]} 22. Nd3 {[%emt 0:05:50]} Rhd8 {[%emt 0:08:45]} 23. Rxd8 {[%emt 0:08:11]} Rxd8 {[%emt 0:00:05]} 24. Nf2 {[%emt 0:00:06]} Bf4 {[%emt 0:03:15]} 25. Bd3 {[%emt 0:01:14]} g4 {[%emt 0:00:55]} 26. Nxg4+ {[%emt 0:00:49]} Ke7 {[%emt 0:00:06]} 27. Rg1 {[%emt 0:09:55]} Bh3 {[%emt 0:00:20]} 28. Nf2 {[%emt 0:00:14]} Bf5 {[%emt 0:00:09]} 29. h3 {[%emt 0:02:14]} h5 {[%emt 0:00:57]} 30. Rd1 {[%emt 0:02:55]} Rg8 {[%emt 0:00:33]} 31. Bxf5 {[%emt 0:00:14]} exf5 {[%emt 0:00:06]} 32. Rd4 {[%emt 0:01:54]} Bh2 {[%emt 0:02:28]} 33. Nd3 {[%emt 0:07:59]} Rg2+ {[%emt 0:00:41]} 34. Kf1 {[%emt 0:00:50]} Rg1+ {[%emt 0:03:52]} 35. Kf2 {[%emt 0:01:17]} Rg8 {[%emt 0:02:30]} 36. Rb4 {[%emt 0:02:57]} Bg1+ {[%emt 0:00:33]} 37. Kf1 {[%emt 0:02:13]} Bb6 {[%emt 0:00:47]} 38. Nf4 {[%emt 0:01:14]} Kd6 {[%emt 0:02:29]} 39. Nxh5 {[%emt 0:04:32]} Rg1+ {[%emt 0:04:34]} 40. Ke2 {[%emt 0:00:00]} Rg2+ {[%emt 0:00:00]} 41. Kd3 {[%emt 0:05:30]} Rf2 {[%emt 0:02:35]} 42. f4 {[%emt 0:01:23]} Ke6 {[%emt 0:14:03]} 43. Rb5 {[%emt 0:00:25]} f6 {[%emt 0:03:04]} 44. Ng7+ {[%emt 0:02:39]} Kf7 {[%emt 0:00:06]} 45. Nxf5 {[%emt 0:00:06]} Rxf4 {[%emt 0:00:39]} 46. Nd6+ {[%emt 0:05:37]} Ke6 {[%emt 0:00:43]} 47. Nc4 {[%emt 0:03:23]} Bg1 {[%emt 0:00:52]} 48. Rh5 {[%emt 0:00:48]} Rf3+ {[%emt 0:02:19]} 49. Ke4 {[%emt 0:00:09]} Rf2 {[%emt 0:01:30]} 50. Rh6 {[%emt 0:00:52]} Bh2 {[%emt 0:02:12]} 51. a4 {[%emt 0:02:18]} Bg1 {[%emt 0:04:05]} 52. Rg6 {[%emt 0:07:04]} Bh2 {[%emt 0:02:32]} 53. Rg7 {[%emt 0:03:18]} f5+ {[%emt 0:01:19]} 54. Kd3 {[%emt 0:00:28]} f4 {[%emt 0:03:42]} 55. Rxa7 {[%emt 0:00:56]} f3 {[%emt 0:00:34]} 56. Ra6+ {[%emt 0:05:14]} Ke7 {[%emt 0:02:26]} 57. Ke4 {[%emt 0:01:35]} Rxb2 {[%emt 0:03:24]} 58. Kxf3 {[%emt 0:00:05]} Rc2 {[%emt 0:00:34]} 59. Ne3 {[%emt 0:00:15]} Rxc3 {[%emt 0:00:19]} 60. Ke4 {[%emt 0:00:03]} Kd7 {[%emt 0:00:33]} 61. h4 {[%emt 0:00:55]} Bg1 {[%emt 0:00:54]} 62. Nf5 {[%emt 0:00:18]} Rc4+ {[%emt 0:00:03]} 63. Ke5 {[%emt 0:00:17]} Kc7 {[%emt 0:00:24]} 64. h5 {[%emt 0:01:26]} Bc5 {[%emt 0:00:56]} 65. Kd5 {[%emt 0:01:55]} Rf4 {[%emt 0:00:05]} 66. Rc6+ {[%emt 0:00:29]} Kb7 {[%emt 0:00:23]} 67. Rxc5 {[%emt 0:00:09]} Rxf5+ {[%emt 0:00:06]} 68. Kd6 {[%emt 0:00:44]} Rf4 {[%emt 0:00:51]} 69. a5 {[%emt 0:00:08]} Re4 {[%emt 0:00:08]} 70. Re5 {[%emt 0:00:04]} 1-0